bitfinex-derivatives/quotes_BTCF0:USTF0_20241116
["timestamp","ask_amount","ask_price","bid_price","bid_amount"]
[1731758386043,0.05328946,91240.0,91239.0,0.10032721]
[1731758386544,0.00012909,91241.0,91239.0,0.10032721]
[1731758386745,0.00012909,91241.0,91240.0,0.04454021]
[1731758389248,0.00012909,91241.0,91240.0,0.01813089]
[1731758389446,0.00012909,91241.0,91240.0,0.04554032]
[1731758390242,0.00012909,91241.0,91240.0,0.01713089]
[1731758390443,0.00012909,91241.0,91240.0,0.01813089]
[1731758390845,0.00012909,91241.0,91240.0,0.07211512]
[1731758391151,0.00012909,91241.0,91240.0,0.01813089]
[1731758392144,0.00012909,91241.0,91240.0,0.04554114]
[1731758392451,0.00012909,91241.0,91240.0,0.001]
[1731758392649,0.00012909,91241.0,91240.0,0.04554198]
[1731758393351,0.00012909,91241.0,91240.0,0.04454198]
[1731758393541,0.00012909,91241.0,91240.0,0.04554198]
[1731758393947,0.00012909,91241.0,91240.0,0.07980381]
[1731758395247,0.00012909,91241.0,91240.0,0.07980221]
[1731758396058,0.05341823,91241.0,91240.0,0.07980221]
[1731758396643,0.05341825,91241.0,91240.0,0.07980221]
[1731758397751,0.05341825,91241.0,91240.0,0.07980223]
[1731758399449,0.05341825,91241.0,91240.0,0.07980225]
[1731758399854,0.05341825,91241.0,91240.0,0.0455404]
[1731758400253,0.22457373,91241.0,91240.0,0.01813092]
[1731758400448,0.22457373,91241.0,91240.0,0.001]
[1731758400755,0.29338513,91241.0,91240.0,0.001]
[1731758400952,0.45262977,91241.0,91240.0,0.001]
[1731758401149,0.2510339,91241.0,91240.0,0.01713314]
[1731758401347,0.35698938,91241.0,91240.0,0.01713314]
[1731758401658,0.11861825,91241.0,91233.0,0.054791]
[1731758401859,0.1963625,91238.0,91233.0,0.054791]
[1731758402248,0.1963625,91238.0,91233.0,0.10905191]
[1731758402756,0.12295275,91235.0,91234.0,0.04454617]
[1731758402955,0.17624191,91235.0,91234.0,0.04454617]
[1731758403143,0.40470441,91235.0,91234.0,0.04454617]
[1731758403349,0.33654166,91235.0,91234.0,0.04454807]
[1731758403552,0.46851478,91235.0,91234.0,0.04454807]
[1731758403849,0.08538916,91235.0,91234.0,0.07881438]
[1731758404152,0.08538916,91235.0,91234.0,0.04454807]
[1731758404153,0.28175803,91235.0,91234.0,0.04454807]
[1731758404355,0.28176494,91235.0,91234.0,0.04454807]
[1731758404655,0.28176494,91235.0,91234.0,0.09933807]
[1731758404656,0.05329607,91235.0,91234.0,0.09933807]
[1731758404859,0.05329607,91235.0,91234.0,0.20176684]
[1731758405266,0.05329607,91235.0,91234.0,0.14697684]
[1731758405556,0.16366341,91237.0,91236.0,0.054789]
[1731758405754,0.16366341,91237.0,91236.0,0.57966687]
[1731758405946,0.16366341,91238.0,91236.0,0.56256584]
[1731758406148,0.16366341,91238.0,91237.0,0.07881409]
[1731758406359,0.00012909,91241.0,91237.0,0.07881409]
[1731758406558,0.05329032,91240.0,91239.0,0.054786]
[1731758406751,0.05329032,91240.0,91239.0,0.12294875]
[1731758407058,0.05329032,91240.0,91239.0,0.2017527]
[1731758407449,0.05329032,91240.0,91239.0,0.26991545]
[1731758408044,0.07683909,91241.0,91239.0,0.59871545]
[1731758408250,0.0521734,91241.0,91240.0,0.83075987]
[1731758408447,0.0521734,91241.0,91240.0,0.94998318]
[1731758408851,0.01791647,91241.0,91240.0,0.96090208]
[1731758409054,0.01791647,91241.0,91240.0,0.94998318]
[1731758409555,0.01791647,91241.0,91240.0,0.95098318]
[1731758409757,0.07120473,91241.0,91240.0,0.95072665]
[1731758410051,0.07120404,91241.0,91240.0,0.95072665]
[1731758410255,0.01791647,91241.0,91240.0,0.81440115]
[1731758410442,0.01791647,91241.0,91240.0,0.95072665]
[1731758410646,0.01791647,91241.0,91240.0,0.92880159]
[1731758411053,0.18163321,91241.0,91240.0,0.92880159]
[1731758411445,0.01791647,91241.0,91240.0,0.92880159]
[1731758412247,0.01791647,91241.0,91240.0,0.94589567]
[1731758412556,0.22908274,91259.0,91240.0,0.94589567]
[1731758412557,0.22908274,91273.0,91247.0,0.054782]
[1731758412855,0.054764,91277.0,91259.0,0.3608]
[1731758413063,0.054764,91277.0,91259.0,0.46953389]
[1731758413257,0.054764,91277.0,91259.0,0.49803898]
[1731758413850,0.054764,91277.0,91259.0,0.51174005]
[1731758414054,0.10954942,91283.0,91259.0,0.52125151]
[1731758414261,0.10954942,91283.0,91282.0,0.339281]
[1731758414469,0.10954942,91283.0,91282.0,0.41805226]
[1731758414647,0.10954942,91283.0,91282.0,0.41805276]
[1731758414854,0.10954942,91283.0,91282.0,0.38380807]
[1731758415058,0.10954942,91283.0,91282.0,0.4728146]
[1731758415258,0.10954942,91283.0,91282.0,0.36667711]
[1731758415458,0.10954942,91283.0,91282.0,0.45296243]
[1731758416566,0.10954942,91283.0,91282.0,0.40844375]
[1731758416877,0.10954942,91283.0,91282.0,0.45296509]
[1731758417163,0.10954942,91283.0,91282.0,0.42556734]
[1731758417364,0.10954942,91283.0,91282.0,0.42556735]
[1731758417756,0.10954942,91283.0,91282.0,0.45296501]
[1731758418263,0.10954942,91283.0,91282.0,0.42556735]
[1731758418667,0.17771217,91283.0,91282.0,0.3574046]
[1731758418859,0.17771217,91283.0,91282.0,0.0181236]
[1731758420269,0.60667492,91283.0,91282.0,0.0181236]
[1731758420462,0.53851217,91283.0,91282.0,0.001]
[1731758421566,0.53851217,91283.0,91254.0,0.01703582]
[1731758421567,1.0970714,91283.0,91254.0,0.01703582]
[1731758421769,1.0970714,91283.0,91255.0,0.0879363]
[1731758421770,0.06816275,91257.0,91255.0,0.0879363]
[1731758421976,0.06816275,91257.0,91256.0,0.0879363]
[1731758422473,0.06816275,91257.0,91256.0,0.048048]
[1731758422679,0.06816275,91257.0,91256.0,0.04452454]
[1731758422981,0.054781,91250.0,91248.0,0.02191791]
[1731758423278,0.054782,91248.0,91241.0,8.982e-05]
[1731758425276,0.3608,91249.0,91241.0,8.982e-05]
[1731758426469,0.05478,91251.0,91241.0,8.982e-05]
[1731758427064,0.054781,91250.0,91241.0,8.982e-05]
[1731758427272,0.3608,91249.0,91241.0,8.982e-05]
[1731758427476,0.054782,91248.0,91241.0,8.982e-05]
[1731758427962,0.054782,91248.0,91245.0,0.00215]
[1731758428363,0.0309,91248.0,91245.0,0.00215]
[1731758428568,0.054783,91247.0,91245.0,0.00115]
[1731758428869,0.054783,91247.0,91245.0,0.00215]
[1731758430481,0.0304,91246.0,91245.0,0.00215]
[1731758431879,0.0304,91246.0,91245.0,0.0192818]
[1731758432267,0.0309,91248.0,91245.0,0.0192818]
[1731758432569,0.0309,91248.0,91246.0,0.0171318]
[1731758432772,0.0309,91248.0,91247.0,0.0171318]
[1731758433278,0.0309,91248.0,91247.0,0.04454067]
[1731758433780,0.0309,91248.0,91245.0,0.00215]
[1731758433781,0.3608,91249.0,91245.0,0.00215]
[1731758433982,0.3608,91249.0,91246.0,0.0445392]
[1731758434184,0.3608,91249.0,91247.0,0.0445392]
[1731758434383,0.3608,91249.0,91248.0,0.0445392]
[1731758434683,0.0317,91255.0,91248.0,0.0445392]
[1731758434867,0.0317,91255.0,91247.0,0.055782]
[1731758434868,0.0312,91256.0,91249.0,0.13357864]
[1731758435073,0.0312,91256.0,91250.0,0.0445392]
[1731758435282,0.0312,91256.0,91249.0,0.054781]
[1731758435283,0.0312,91256.0,91251.0,0.07879754]
[1731758435477,0.117873,91263.0,91252.0,0.0445392]
[1731758435684,0.117873,91263.0,91253.0,0.0445392]
[1731758435876,0.117873,91263.0,91254.0,0.0445392]
[1731758436069,0.117873,91263.0,91255.0,0.0445392]
[1731758436281,0.117873,91263.0,91256.0,0.0445392]
[1731758436468,0.0631,91263.0,91257.0,0.0445392]
[1731758436671,0.0328,91266.0,91258.0,0.0445392]
[1731758436872,0.0328,91266.0,91259.0,0.0445392]
[1731758437071,0.0328,91266.0,91260.0,0.0445392]
[1731758437279,0.0016441,91267.0,91261.0,0.0445392]
[1731758437485,0.0016441,91267.0,91262.0,0.07879373]
[1731758437679,0.0016441,91267.0,91263.0,0.07879373]
[1731758437875,0.0016441,91267.0,91264.0,0.0445392]
[1731758438095,0.0016441,91267.0,91265.0,0.0445392]
[1731758438278,0.0016441,91267.0,91266.0,0.0445392]
[1731758438487,0.0016441,91267.0,91266.0,0.0993102]
[1731758438877,0.0304,91277.0,91268.0,0.054769]
[1731758439387,0.0304,91277.0,91269.0,0.04452704]
[1731758439588,0.0304,91277.0,91263.0,0.0051]
[1731758439589,0.0304,91277.0,91270.0,0.04452704]
[1731758439767,0.3608,91279.0,91272.0,0.054767]
[1731758439972,0.3608,91279.0,91274.0,0.054766]
[1731758440277,0.10954942,91283.0,91278.0,0.46464213]
[1731758440472,0.10954942,91283.0,91282.0,0.3608]
[1731758440673,0.10954942,91283.0,91282.0,0.40532623]
[1731758441070,0.10954942,91283.0,91282.0,0.43957069]
[1731758441274,0.10954942,91283.0,91282.0,0.40532623]
[1731758441683,0.10954942,91283.0,91282.0,0.40632623]
[1731758441879,0.10954942,91283.0,91282.0,0.47077068]
[1731758442076,0.10954942,91283.0,91282.0,0.49106906]
[1731758443074,0.10954942,91283.0,91282.0,0.13026906]
[1731758444073,0.10954942,91283.0,91282.0,0.12927128]
[1731758444273,0.10954942,91283.0,91282.0,0.13027128]
[1731758444684,0.10954942,91283.0,91282.0,0.53965532]
[1731758444983,0.10954942,91283.0,91282.0,0.16451383]
[1731758445491,0.10954942,91283.0,91282.0,0.16451716]
[1731758445688,0.10954942,91283.0,91282.0,0.10007115]
[1731758447377,0.10954942,91283.0,91282.0,0.13431904]
[1731758448892,0.10954942,91283.0,91282.0,0.05555134]
[1731758449187,0.10954942,91283.0,91282.0,0.13431968]
[1731758449392,0.10954942,91283.0,91282.0,0.05555134]
[1731758449696,0.10954942,91283.0,91282.0,0.13431963]
[1731758450187,0.10954942,91283.0,91282.0,0.49511963]
[1731758451590,0.10954942,91283.0,91282.0,0.55668726]
[1731758452487,0.10954942,91283.0,91282.0,0.44645134]
[1731758452692,0.10954942,91283.0,91282.0,0.55689219]
[1731758452892,0.08489467,91283.0,91282.0,0.54219508]
[1731758453187,0.02599726,91283.0,91282.0,0.54319508]
[1731758454091,0.02599726,91283.0,91282.0,0.48864374]
[1731758455499,0.02599726,91283.0,91282.0,0.51994374]
[1731758455796,0.02599726,91283.0,91282.0,0.96402374]
[1731758455987,15.34756001,91290.0,91282.0,0.88296253]
[1731758456191,15.34756001,91290.0,91285.0,0.10384213]
[1731758456192,15.347,91290.0,91285.0,0.10384213]
[1731758456392,15.347,91290.0,91286.0,0.07875744]
[1731758456592,15.347,91290.0,91287.0,0.07875744]
[1731758456891,15.347,91290.0,91288.0,0.07875744]
[1731758457093,15.347,91290.0,91289.0,0.13360652]
[1731758458096,15.347,91290.0,91289.0,0.54187297]
[1731758458299,15.0297099,91290.0,91289.0,0.54187297]
[1731758458689,15.0297099,91290.0,91289.0,0.49393804]
[1731758459401,15.0297099,91290.0,91289.0,0.39718477]
[1731758459589,15.0297099,91290.0,91289.0,0.49399172]
[1731758459897,15.0297099,91290.0,91289.0,0.62067578]
[1731758460093,14.67544791,91290.0,91289.0,0.58643681]
[1731758460611,14.67544791,91290.0,91289.0,0.50768719]
[1731758460785,14.12757944,91290.0,91289.0,0.5864368]
[1731758461197,14.09638604,91290.0,91289.0,0.58630335]
[1731758461397,14.05030603,91290.0,91289.0,0.58630335]
[1731758461800,13.97466622,91290.0,91289.0,0.48962994]
[1731758462005,13.97466622,91290.0,91289.0,0.24397283]
[1731758462205,13.97466622,91290.0,91289.0,0.88630803]
[1731758462206,13.93281034,91290.0,91289.0,0.88630803]
[1731758462388,13.92623943,91290.0,91289.0,0.96795506]
[1731758462707,13.60833449,91290.0,91289.0,0.86729573]
[1731758462899,13.60833449,91290.0,91289.0,0.94618765]
[1731758463091,13.54156465,91290.0,91289.0,0.49086585]
[1731758463292,13.54156465,91290.0,91289.0,0.83783388]
[1731758463505,13.54156465,91290.0,91289.0,0.897441]
[1731758463804,13.54156465,91290.0,91289.0,0.597441]
[1731758463805,13.50527268,91290.0,91289.0,0.597441]
[1731758464190,13.48850087,91290.0,91289.0,0.52997301]
[1731758464500,13.48850087,91290.0,91289.0,0.64541301]
[1731758464894,13.23073547,91290.0,91289.0,0.64541301]
[1731758465091,13.23073547,91290.0,91289.0,1.14124252]
[1731758465292,13.21362001,91290.0,91289.0,0.87983408]
[1731758465492,13.21362001,91290.0,91289.0,0.61090621]
[1731758465702,13.21362001,91290.0,91289.0,0.89959106]
[1731758465703,13.1206192,91290.0,91289.0,0.89959106]
[1731758466000,13.11201978,91290.0,91289.0,1.19959106]
[1731758466204,13.11201978,91290.0,91289.0,1.00376155]
[1731758466592,13.11201978,91290.0,91289.0,1.03516155]
[1731758466790,13.11201978,91290.0,91289.0,1.03523625]
[1731758467001,13.11201978,91290.0,91289.0,1.28604455]
[1731758467196,13.11201978,91290.0,91289.0,1.03523723]
[1731758467710,13.06540053,91290.0,91289.0,1.03523723]
[1731758468004,13.02433307,91290.0,91289.0,1.03523723]
[1731758468203,11.81834323,91290.0,91289.0,1.03523723]
[1731758468510,11.21829059,91290.0,91289.0,1.39680194]
[1731758468800,9.71697529,91290.0,91289.0,1.39680194]
[1731758469001,9.34484999,91290.0,91289.0,1.39680194]
[1731758469204,8.28799716,91290.0,91289.0,1.27178643]
[1731758469400,8.16523034,91290.0,91289.0,1.48700164]
[1731758469609,7.17965304,91290.0,91289.0,1.5006935]
[1731758469806,7.01116809,91290.0,91289.0,1.5006935]
[1731758469997,6.37494843,91290.0,91289.0,1.5006935]
[1731758470303,6.08267885,91290.0,91289.0,1.49117144]
[1731758470493,6.08267885,91290.0,91289.0,1.49449144]
[1731758470695,6.08267885,91290.0,91289.0,1.4944812]
[1731758470900,6.08267885,91290.0,91289.0,1.82169607]
[1731758471200,6.08267885,91290.0,91289.0,1.02367193]
[1731758471407,6.00805316,91290.0,91289.0,0.84243193]
[1731758471611,6.00805316,91290.0,91289.0,1.14243193]
[1731758472105,5.71074704,91290.0,91289.0,1.14243193]
[1731758472295,5.71074704,91290.0,91289.0,1.05406626]
[1731758472491,5.6563077,91290.0,91289.0,1.01846527]
[1731758472793,5.6563077,91290.0,91289.0,0.84218097]
[1731758472997,5.62207258,91290.0,91289.0,0.84218097]
[1731758473301,5.59118465,91290.0,91289.0,0.73833884]
[1731758473602,5.53640895,91290.0,91289.0,0.57165336]
[1731758473792,5.53640895,91290.0,91289.0,0.67927951]
[1731758473996,5.53640895,91290.0,91289.0,0.84182316]
[1731758474197,5.53640895,91290.0,91289.0,0.78812126]
[1731758474803,5.53640895,91290.0,91289.0,0.68427913]
[1731758475104,5.53640895,91290.0,91289.0,0.67350792]
[1731758475306,5.53640895,91290.0,91289.0,0.64210792]
[1731758475804,5.53640895,91290.0,91289.0,0.52334792]
[1731758475996,5.53640895,91290.0,91289.0,0.64210792]
[1731758476192,5.53640895,91290.0,91289.0,0.65844171]
[1731758476808,5.53640895,91290.0,91289.0,0.65845178]
[1731758477201,5.53640895,91290.0,91289.0,0.32981178]
[1731758477401,5.53640895,91290.0,91289.0,0.65845178]
[1731758478207,5.53640895,91290.0,91289.0,0.70638383]
[1731758478510,5.50217158,91290.0,91289.0,0.96829976]
[1731758478707,5.50217158,91290.0,91289.0,0.70638383]
[1731758479016,5.50217158,91290.0,91289.0,0.37774383]
[1731758479399,5.50217158,91290.0,91289.0,0.27708357]
[1731758479701,5.50217158,91290.0,91289.0,0.30816782]
[1731758480214,5.50217158,91290.0,91289.0,0.30134738]
[1731758480416,5.50217158,91290.0,91289.0,0.13935487]
[1731758480707,5.50217158,91290.0,91289.0,0.19385819]
[1731758481211,5.50217158,91290.0,91289.0,0.18039517]
[1731758481713,5.50217158,91290.0,91289.0,0.18048689]
[1731758481910,5.50217158,91290.0,91289.0,0.18048703]
[1731758482918,5.50217158,91290.0,91289.0,0.06551804]
[1731758483122,5.47751745,91290.0,91289.0,0.06551804]
[1731758486408,5.41862366,91290.0,91289.0,0.07983102]
[1731758487309,5.41862366,91290.0,91289.0,0.07512491]
[1731758487708,5.41862366,91290.0,91289.0,0.06551804]
[1731758488113,5.32445991,91290.0,91289.0,0.06551804]
[1731758489305,5.20259891,91290.0,91289.0,0.06551804]
[1731758489516,5.20259891,91290.0,91289.0,0.08258495]
[1731758489709,5.20259891,91290.0,91289.0,0.0749924]
[1731758490415,5.20259891,91290.0,91289.0,0.06551804]
[1731758490623,5.20259891,91290.0,91289.0,0.09689951]
[1731758490810,5.20259891,91290.0,91289.0,0.0968969]
[1731758491508,5.15939395,91290.0,91289.0,0.0968969]
[1731758492417,5.04769335,91290.0,91289.0,0.10774666]
[1731758492719,5.04769335,91290.0,91289.0,0.13855933]
[1731758493424,5.04769335,91290.0,91289.0,0.11685181]
[1731758493425,4.96172589,91290.0,91289.0,0.11685181]
[1731758493716,4.96172589,91290.0,91289.0,0.13876492]
[1731758493922,4.93029916,91290.0,91289.0,0.13876492]
[1731758494217,4.88236671,91290.0,91289.0,0.14641773]
[1731758494413,4.88236671,91290.0,91289.0,0.14668475]
[1731758494810,4.77057096,91290.0,91289.0,0.14668475]
[1731758495206,4.65907828,91290.0,91289.0,0.42254325]
[1731758495515,4.65907828,91290.0,91289.0,0.473899]
[1731758495710,4.65907828,91290.0,91289.0,0.14668413]
[1731758496315,4.62484161,91290.0,91289.0,0.473899]
[1731758496613,4.62484161,91290.0,91289.0,0.1390314]
[1731758497212,4.62484161,91290.0,91289.0,0.40114137]
[1731758497516,4.62484161,91290.0,91289.0,0.39029166]
[1731758498220,4.62484161,91290.0,91289.0,0.12818169]
[1731758498415,4.62484161,91290.0,91289.0,0.23122927]
[1731758498615,4.62484161,91290.0,91289.0,0.42782928]
[1731758498922,4.62484161,91290.0,91289.0,0.23122927]
[1731758499310,4.62484161,91290.0,91289.0,0.42782928]
[1731758499612,4.62484161,91290.0,91289.0,0.15248378]
[1731758499808,4.62484161,91290.0,91289.0,0.23123832]
[1731758500920,4.62484161,91290.0,91289.0,0.09204038]
[1731758501118,4.62484161,91290.0,91289.0,0.09633177]
[1731758501328,5.52196587,91290.0,91289.0,0.009407]
[1731758501508,0.054759,91286.0,91278.0,0.0051]
[1731758501822,0.054764,91277.0,91273.0,0.25491704]
[1731758502124,0.21859457,91277.0,91270.0,0.01872483]
[1731758502309,0.10384213,91272.0,91271.0,8.678e-05]
[1731758503412,0.26758354,91272.0,91271.0,8.678e-05]
[1731758503622,0.15711745,91272.0,91271.0,8.678e-05]
[1731758503920,0.10384213,91272.0,91271.0,8.678e-05]
[1731758504318,0.43252213,91272.0,91271.0,8.678e-05]
[1731758504520,0.10384213,91259.0,91258.0,0.00466447]
[1731758504726,0.10384213,91259.0,91254.0,0.01707748]
[1731758504923,0.19682746,91258.0,91254.0,0.01707748]
[1731758505223,0.0332,91258.0,91254.0,0.01707748]
[1731758505433,0.0332,91258.0,91255.0,0.00011623]
[1731758505925,0.054776,91257.0,91255.0,0.00011623]
[1731758506123,0.10384213,91256.0,91255.0,0.00011623]
[1731758506327,0.054776,91257.0,91255.0,0.00011623]
[1731758507626,0.0332,91258.0,91255.0,0.00011623]
[1731758512517,0.054776,91257.0,91255.0,0.00011623]
[1731758515833,0.32876,91256.0,91255.0,0.00011623]
[1731758516026,0.32876,91256.0,91239.0,0.00164362]
[1731758516027,0.054783,91246.0,91239.0,0.00164362]
[1731758516229,0.10384213,91241.0,91239.0,0.00164362]
[1731758516427,0.0325,91240.0,91239.0,0.00164362]
[1731758517025,0.0325,91240.0,91239.0,0.00177704]
[1731758517837,0.3613,91240.0,91239.0,0.00177704]
[1731758518136,0.05479,91235.0,91214.0,0.0316]
[1731758518334,0.3608,91227.0,91215.0,0.01713248]
[1731758518536,0.3608,91227.0,91216.0,0.03083873]
[1731758518836,0.10384213,91222.0,91198.0,0.054811]
[1731758519043,0.3608,91219.0,91213.0,9.054e-05]
[1731758519230,0.0319,91218.0,91213.0,9.054e-05]
[1731758519530,0.10384213,91214.0,91213.0,9.054e-05]
[1731758520236,0.10384213,91214.0,91202.0,0.0312]
[1731758520237,0.054803,91213.0,91202.0,0.0312]
[1731758520531,0.10384213,91203.0,91199.0,0.0557465]
[1731758520731,0.10384213,91203.0,91189.0,0.0628]
[1731758521434,0.10384213,91203.0,91194.0,7.968e-05]
[1731758521639,0.3608,91205.0,91194.0,7.968e-05]
[1731758521842,0.0051,91214.0,91198.0,0.3608]
[1731758522043,0.3608,91217.0,91198.0,0.415611]
[1731758522332,0.3608,91217.0,91200.0,0.05481]
[1731758522523,0.3608,91217.0,91202.0,0.0007]
[1731758524735,0.3608,91217.0,91207.0,0.3608]
[1731758525038,0.3608,91217.0,91208.0,0.0302]
[1731758525241,0.10384213,91212.0,91208.0,0.0302]
[1731758531728,0.415605,91209.0,91202.0,0.0007]
[1731758532823,0.3608,91209.0,91202.0,0.0007]
[1731758533434,0.054806,91208.0,91202.0,0.0007]
[1731758533630,0.054807,91206.0,91202.0,0.0007]
[1731758533828,0.10384213,91202.0,91187.0,0.05658752]
[1731758534033,0.3608,91200.0,91185.0,0.054819]
[1731758534338,0.03005428,91199.0,91185.0,0.054819]
[1731758534540,0.03005428,91198.0,91185.0,0.054819]
[1731758534727,0.03005428,91197.0,91186.0,8.896e-05]
[1731758534931,0.03005428,91196.0,91186.0,8.896e-05]
[1731758535237,0.416251,91200.0,91186.0,8.896e-05]
[1731758535238,0.13389641,91195.0,91186.0,8.896e-05]
[1731758535428,0.3608,91192.0,91186.0,8.896e-05]
[1731758535739,0.03005428,91191.0,91186.0,8.896e-05]
[1731758536043,0.03005428,91190.0,91186.0,8.896e-05]
[1731758536228,0.10384213,91188.0,91186.0,8.896e-05]
[1731758536429,0.03005428,91187.0,91186.0,8.896e-05]
[1731758536629,0.054816,91191.0,91186.0,8.896e-05]
[1731758537436,0.3608,91192.0,91186.0,8.896e-05]
[1731758541131,0.3608,91200.0,91193.0,0.054814]
[1731758541333,0.16362746,91205.0,91188.0,0.3608]
[1731758541528,0.13514213,91206.0,91188.0,0.3608]
[1731758541529,0.10384213,91192.0,91188.0,0.3608]
[1731758543450,0.054813,91197.0,91188.0,0.3608]
[1731758543743,0.3608,91201.0,91188.0,0.415617]
[1731758543954,0.3608,91201.0,91188.0,0.3608]
[1731758544657,0.3608,91201.0,91189.0,0.01714001]
[1731758544949,0.3608,91201.0,91190.0,0.01714001]
[1731758545132,0.3608,91201.0,91191.0,0.01714002]
[1731758545336,0.3608,91201.0,91192.0,0.01714002]
[1731758545555,0.3608,91201.0,91193.0,0.01714002]
[1731758545844,0.3608,91201.0,91194.0,0.04456406]
[1731758546041,0.3608,91201.0,91195.0,0.09937706]
[1731758546246,0.3608,91201.0,91196.0,0.07726406]
[1731758546440,0.3608,91201.0,91197.0,0.04456406]
[1731758546647,0.52442746,91201.0,91198.0,0.04456406]
[1731758546842,0.52442746,91201.0,91199.0,0.04456406]
[1731758547149,0.52442746,91201.0,91200.0,0.04456406]
[1731758547340,0.41411727,91201.0,91200.0,0.04456406]
[1731758548352,0.60986613,91201.0,91196.0,0.0649]
[1731758548652,0.05331727,91200.0,91198.0,0.01709123]
[1731758548854,0.05331727,91200.0,91199.0,0.04456396]
[1731758549243,0.05331727,91200.0,91199.0,0.06166982]
[1731758549646,0.05331695,91200.0,91199.0,0.06166982]
[1731758549842,0.05331695,91200.0,91199.0,0.04456396]
[1731758550045,0.05331695,91200.0,91199.0,0.09937496]
[1731758550255,0.16375575,91200.0,91199.0,0.09937496]
[1731758550555,0.16375575,91202.0,91201.0,0.05481]
[1731758550752,0.16375575,91202.0,91201.0,0.13364932]
[1731758550753,0.13907749,91202.0,91201.0,0.13364932]
[1731758550962,0.19574886,91210.0,91201.0,0.13364932]
[1731758551149,0.3608,91214.0,91202.0,0.07883932]
[1731758551344,0.05330971,91213.0,91203.0,0.07883932]
[1731758551539,0.05330971,91213.0,91198.0,0.3608]
[1731758551540,0.05330971,91213.0,91204.0,0.07883932]
[1731758551745,0.05330971,91213.0,91206.0,0.054807]
[1731758552047,0.3608,91214.0,91207.0,0.07883932]
[1731758552355,0.3608,91214.0,91208.0,0.07883932]
[1731758552652,0.3608,91214.0,91209.0,0.07883932]
[1731758552852,0.3608,91214.0,91210.0,0.07883932]
[1731758553047,0.3608,91214.0,91211.0,0.07883932]
[1731758553242,0.3659,91223.0,91212.0,0.01713744]
[1731758553452,0.3608,91223.0,91213.0,0.10943222]
[1731758553649,0.3608,91223.0,91214.0,0.07883222]
[1731758553853,0.3608,91223.0,91215.0,0.07883222]
[1731758554060,0.3608,91223.0,91216.0,0.07883222]
[1731758554353,0.3608,91223.0,91217.0,0.07883222]
[1731758554561,0.3608,91223.0,91218.0,0.07883222]
[1731758554858,0.3608,91223.0,91219.0,0.07883222]
[1731758555259,0.3608,91226.0,91219.0,0.07883222]
[1731758555454,9.181e-05,91227.0,91219.0,0.13363122]
[1731758555660,9.181e-05,91227.0,91220.0,0.07883222]
[1731758555857,9.181e-05,91227.0,91223.0,0.054796]
[1731758556062,9.181e-05,91227.0,91225.0,0.054795]
[1731758556259,9.181e-05,91227.0,91226.0,0.43963222]
[1731758557761,9.181e-05,91227.0,91226.0,0.07883222]
[1731758558456,9.181e-05,91227.0,91226.0,0.04455734]
[1731758558858,9.181e-05,91227.0,91226.0,0.01713744]
[1731758559956,0.11266626,91227.0,91226.0,0.00564494]
[1731758560170,0.11266626,91227.0,91214.0,0.0332]
[1731758560171,0.16597019,91227.0,91214.0,0.0332]
[1731758560358,0.19614756,91222.0,91215.0,0.02741762]
[1731758560553,0.05330393,91221.0,91216.0,0.02741762]
[1731758560752,0.19614756,91223.0,91217.0,0.02741762]
[1731758560753,0.05330393,91220.0,91217.0,0.02741762]
[1731758560952,0.19614756,91224.0,91218.0,0.02741762]
[1731758561255,0.05330431,91223.0,91216.0,0.054801]
[1731758561561,0.05330266,91222.0,91217.0,0.02741648]
[1731758561758,0.05330266,91221.0,91218.0,0.02741648]
[1731758561953,0.19614756,91225.0,91216.0,0.054801]
[1731758562162,0.05330405,91224.0,91218.0,0.0548]
[1731758562360,0.05330405,91223.0,91218.0,0.0548]
[1731758562554,8.1e-07,91227.0,91225.0,0.054795]
[1731758562751,8.1e-07,91227.0,91226.0,0.19809569]
[1731758562954,8.1e-07,91227.0,91226.0,0.52693569]
[1731758563163,8.1e-07,91227.0,91226.0,0.49952]
[1731758563462,0.0051,91235.0,91234.0,0.05479]
[1731758563761,0.00184,91238.0,91234.0,0.38821052]
[1731758563962,0.00184,91238.0,91234.0,0.41559]
[1731758564959,0.00184,91238.0,91236.0,0.054789]
[1731758566268,0.00010771,91245.0,91236.0,0.054789]
[1731758567664,0.054796,91225.0,91211.0,0.0051]
[1731758567871,0.51944013,91220.0,91200.0,0.37947339]
[1731758568069,0.054805,91210.0,91205.0,0.01702909]
[1731758568267,0.054805,91210.0,91200.0,0.3624443]
[1731758568268,0.46464213,91208.0,91200.0,0.0016443]
[1731758568975,0.51944813,91208.0,91200.0,0.0016443]
[1731758569161,0.054807,91207.0,91201.0,7.921e-05]
[1731758569862,0.46532213,91208.0,91189.0,0.054817]
[1731758570057,0.10384213,91198.0,91191.0,0.054816]
[1731758570258,0.46464213,91205.0,91190.0,0.01371092]
[1731758570463,0.46464213,91205.0,91193.0,0.054814]
[1731758570865,0.46464213,91205.0,91200.0,0.00011311]
[1731758571960,0.3608,91205.0,91200.0,0.00011311]
[1731758572763,0.3608,91205.0,91201.0,0.01713957]
[1731758572973,0.3608,91205.0,91200.0,0.00011311]
[1731758572974,0.3608,91205.0,91202.0,0.01713957]
[1731758573275,0.3608,91205.0,91200.0,0.00011311]
[1731758573473,0.3608,91205.0,91201.0,0.01713966]
[1731758573773,0.3608,91205.0,91202.0,0.01713966]
[1731758573971,0.3608,91205.0,91203.0,0.01713966]
[1731758574177,0.3608,91205.0,91204.0,0.01713966]
[1731758575063,0.3608,91205.0,91200.0,0.00011311]
[1731758575774,0.415608,91205.0,91200.0,0.00011311]
[1731758576470,0.3608,91205.0,91200.0,0.00011311]
[1731758576875,0.054809,91203.0,91200.0,0.00011311]
[1731758577084,0.0333,91202.0,91200.0,0.00011311]
[1731758582776,0.3608,91205.0,91200.0,0.05492311]
[1731758583281,0.3608,91205.0,91200.0,0.00011311]
[1731758583470,0.3608,91205.0,91203.0,0.054808]
[1731758584178,0.3608,91205.0,91200.0,0.00011311]
[1731758584179,0.3608,91212.0,91200.0,0.00011311]
[1731758584382,0.3608,91212.0,91209.0,0.054805]
[1731758590876,0.3608,91212.0,91200.0,0.00011311]
[1731758591077,0.3608,91202.0,91200.0,0.00011311]
[1731758594074,0.3913,91202.0,91200.0,0.00011311]
[1731758596990,0.05331781,91201.0,91200.0,0.00011311]
[1731758597386,0.24946537,91201.0,91200.0,0.00011311]
[1731758598286,0.24985456,91201.0,91200.0,0.00011311]
[1731758600496,0.05331781,91201.0,91200.0,0.00011311]
[1731758601083,0.24985456,91201.0,91200.0,0.00011311]
[1731758601499,0.05331781,91201.0,91200.0,0.00011311]
[1731758602295,0.16776076,91201.0,91200.0,0.00011311]
[1731758602993,0.05331781,91201.0,91200.0,0.00011311]
[1731758603205,0.16808475,91201.0,91200.0,0.00011311]
[1731758603410,0.05331781,91201.0,91200.0,0.00011311]
[1731758604200,0.16754765,91201.0,91200.0,0.00011311]